[Event "34th MPL National U14-ch 2022"]
[Site "Ahmedabad"]
[Date "2022.05.10"]
[Round "3.1"]
[White "Kadam Om Manish"]
[Black "Jihan Tejas Shah"]
[Result "1-0"]
[ECO "B36"]
[WhiteElo "2144"]
[BlackElo "1741"]
[Annotator "TA"]
[PlyCount "113"]
[EventDate "2022.05.09"]
[EventType "swiss"]
[EventCountry "IND"]
[SourceTitle "playchess.com"]
[Source "ChessBase"]
[SourceQuality "1"]
[TimeControl "5400+30"]

{[%evp 31,112,48,45,45,42,39,36,0,147,146,143,136,127,158,158,156,296,313,347,341,325,345,706,685,1014,993,2682,2800,2153,2029,6752,5842,12833,12834,12839,12835,12839,12835,12838,12836,29978,29979,29980,29981,29981,29982,29982,29983,29983,29984,29983,29981,29981,29982,29982,29983,29983,12843,12844,12844,12847,12847,12848,12849,12849,12850,27999,27999,27999,27999,27998,27998,27999,27999,27998,27999,27998,27999,27998,27999,27998,27999,27999]} 1. e4 {[%emt 0:00:03] ChessBase II} c5 {[%emt 0:00:59]} 2. Nf3 {[%emt 0:00:04]} Nc6 {[%emt 0:00:18]} 3. d4 {[%emt 0:00:04]} cxd4 {[%emt 0:01:35]} 4. Nxd4 {[%emt 0:00:03]} g6 {[%emt 0:00:11]} 5. c4 {[%emt 0:00:03]} Nf6 {[%emt 0:02:34]} 6. Nc3 {[%emt 0:00:04]} d6 {[%emt 0:00:24]} 7. Be2 {[%emt 0:00:11]} Nxd4 {[%emt 0:00:27]} 8. Qxd4 {[%emt 0:00:06]} Bg7 {[%emt 0:00:03]} 9. Be3 {[%emt 0:00:07]} O-O {[%emt 0:00:12]} 10. Qd2 {[%emt 0:00:03]} Be6 {[%emt 0:00:52]} 11. f3 {[%emt 0:00:18]} Qa5 {[%emt 0:00:38]} 12. Rc1 {[%emt 0:00:15]} Rfc8 {[%emt 0:00:15]} 13. b3 {[%emt 0:00:07]} a6 {[%emt 0:00:16]} 14. Na4 {[%emt 0:00:14]} Qxd2+ {[%emt 0:00:21]} 15. Kxd2 {[%emt 0:00:04]} Nd7 {[%emt 0:00:22]} 16. g4 {[%emt 1:36:44]} f5 {[%emt 0:01:15]} 17. gxf5 {[%emt 0:00:00] B36: Sicilian: Maroczy Bind: Gurgenidze System.} gxf5 {[%emt 0:00:07]} 18. Rhg1 {[%emt 0:00:00] Strongly threatening Bh6.} Kh8 {[%emt 0:01:15]} 19. Bd3 {[%emt 0:00:00] White is slightly better.} Rf8 {[%emt 0:07:49] [#] White stays focused until the end. has lost popularity (19...f4).} (19... f4 $11 20. Bf2 (20. Bxf4 Rf8 $11) 20... Bf7) 20. Rxg7 $1 $16 {[%emt 0:00:00][%mdl 512]} Kxg7 {[%emt 0:00:37]} 21. Rg1+ {[%emt 0:00:00]} Kh8 {[%emt 0:03:41]} 22. Bd4+ {[%emt 0:00:00]} Nf6 {[%emt 0:01:13]} 23. exf5 {[%emt 0:00:00] White is more active.} Bg8 {[%emt 0:06:42]} (23... Bd7 $16 {keeps fighting.}) 24. Nb6 $18 {[%emt 0:00:00]} Rae8 {[%emt 0:13:01]} 25. Nd7 {[%emt 0:00:00]} Rf7 {[%emt 0:09:15]} 26. Be4 {[%emt 0:00:00] [#]} h5 $146 {[%emt 0:17:15]} (26... Rd8) ({Predecessor:} 26... Rd8 27. Nxf6 exf6 28. Bd5 Rdf8 29. Bxf7 Rxf7 30. Kc3 h6 31. Rg6 Kh7 32. Bxf6 Rc7 33. Bd4 Bd5 34. Rxd6 Bxf3 35. Rd8 {1-0 (35) Jones,R (2354)-Maze,S (2510) Fuegen 2006 CBM 115 [ChessBase II]}) 27. Bd5 {[%emt 0:00:00] A strong pair of Bishops.} Ref8 {[%emt 0:00:41]} 28. Nxf8 {[%emt 0:00:00] Threatening mate with Nd7.} Rxf8 {[%emt 0:00:08]} 29. Rxg8+ {[%emt 0:00:00]} Rxg8 {[%emt 0:00:10]} 30. Bxf6+ {[%emt 0:00:00]} exf6 {[%emt 0:00:09]} 31. Bxg8 {[%emt 0:00:00]} Kxg8 {[%emt 0:00:07][%mdl 4096] Endgame KP-KP} 32. Ke3 {[%emt 0:00:00]} Kf7 {[%emt 0:01:32]} 33. Ke4 {[%emt 0:00:00]} Ke7 {[%emt 0:01:25]} 34. Kd5 {[%emt 0:00:00]} Kd7 {[%emt 0:01:35]} 35. b4 {[%emt 0:00:00]} h4 {[%emt 0:02:22]} 36. h3 {[%emt 0:00:00]} Ke7 {[%emt 0:00:54]} 37. a4 {[%emt 0:00:00]} Kd7 {[%emt 0:00:45]} 38. a5 {[%emt 0:00:00]} Ke7 {[%emt 0:00:51]} 39. b5 {[%emt 0:00:00]} Kd7 {[%emt 0:01:12]} 40. bxa6 {[%emt 0:00:00]} bxa6 {[%emt 0:00:06]} 41. c5 {[%emt 0:00:00]} dxc5 {[%emt 0:00:12]} 42. Kxc5 {[%emt 0:00:00]} Kc7 {[%emt 0:00:08]} 43. f4 {[%emt 0:00:00]} Kd7 {[%emt 0:03:03]} 44. Kb6 {[%emt 0:00:00]} (44. Kd5 $142 Kc7 45. Ke6 Kc6 46. Kxf6 Kd6 47. Kg6 Kd5 48. f6 Ke6 49. f7) 44... Kd6 {[%emt 0:00:07]} 45. Kxa6 {[%emt 0:00:00]} Kd5 {[%emt 0:01:06]} 46. Kb5 {[%emt 0:00:00]} Ke4 {[%emt 0:00:03]} 47. a6 {[%emt 0:00:00]} Kxf5 {[%emt 0:00:04]} 48. a7 {[%emt 0:00:00]} Kxf4 {[%emt 0:00:06]} 49. a8=Q {[%emt 0:00:00] White mates.} Kg3 {[%emt 0:00:07]} 50. Qc8 {[%emt 0:00:00]} f5 {[%emt 0:00:54]} 51. Qxf5 {[%emt 0:00:00]} Kh2 {[%emt 0:00:03]} 52. Qg4 {[%emt 0:00:00]} Kh1 {[%emt 0:00:04]} 53. Kc4 {[%emt 0:00:00]} Kh2 {[%emt 0:00:05]} 54. Kd3 {[%emt 0:00:00]} Kh1 {[%emt 0:00:05]} 55. Ke2 {[%emt 0:00:00]} Kh2 {[%emt 0:28:19]} 56. Kf2 {[%emt 0:20:00]} Kh1 {[%emt 0:00:00]} 57. Qg1# {[%emt 0:00:00] Weighted Error Value: White=0.02 (flawless) /Black=0.65} 1-0

[Event "34th MPL National U14-ch 2022"]
[Site "Ahmedabad"]
[Date "2022.05.10"]
[Round "3.2"]
[White "Aswath S"]
[Black "Md Imran"]
[Result "0-1"]
[ECO "B35"]
[WhiteElo "1694"]
[BlackElo "2122"]
[Annotator "TA"]
[PlyCount "94"]
[EventDate "2022.05.09"]
[EventType "swiss"]
[EventCountry "IND"]
[SourceTitle "playchess.com"]
[Source "ChessBase"]
[SourceQuality "1"]
[TimeControl "5400+30"]

{[%evp 21,94,29,36,29,27,11,10,9,12,3,19,4,17,0,20,0,0,0,39,-114,-118,-105,-105,-98,-106,-105,-91,-87,-109,-239,-243,-227,-226,-214,-177,-225,-220,-224,-178,-184,-206,-300,-254,-249,-247,-437,-406,-403,-379,-467,-442,-750,-751,-748,-742,-745,-745,-741,-735,-719,-723,-697,-671,-996,-987,-961,-987,-958,-949,-998,-969,-29981,-29982,-29989,-29990]} 1. e4 {[%emt 0:00:05]} c5 {[%emt 0:00:12]} 2. Nf3 {[%emt 0:00:06]} g6 {[%emt 0:00:06]} 3. d4 {[%emt 0:00:04]} cxd4 {[%emt 0:00:01]} 4. Nxd4 {[%emt 0:00:09]} Nc6 {[%emt 0:00:04]} 5. Nc3 {[%emt 0:00:07]} Bg7 {[%emt 0:00:06]} 6. Be3 {[%emt 0:00:06]} Nf6 {[%emt 0:00:05]} 7. Bc4 {[%emt 0:00:05]} O-O {[%emt 0:00:06]} 8. Bb3 {[%emt 0:00:04]} Ng4 {[%emt 0:04:20]} 9. Qxg4 {[%emt 0:00:09]} Nxd4 {[%emt 0:00:06]} 10. Qd1 {[%emt 0:00:05]} Nxb3 {[%emt 0:01:46]} 11. axb3 {[%emt 0:00:09]} b6 {[%emt 0:01:14]} 12. Qd2 {[%emt 0:04:32] B35: Sicilian: Accelerated Dragon with 5 Nc3: main line.} Bb7 {[%emt 0:00:48]} 13. Bh6 {[%emt 0:00:49]} Bxh6 {[%emt 0:02:25]} 14. Qxh6 {[%emt 0:00:09] The position is equal.} f5 {[%emt 0:00:51] [#]} 15. e5 $146 {[%emt 0:22:48]} ({Predecessor:} 15. h4 e6 16. e5 f4 17. O-O-O Rf5 18. Nb5 Bxg2 19. Rhg1 f3 20. Rge1 a6 21. Nd6 {1-0 (38) Bologan,V (2585)-Wirthensohn,H (2390) Bern 1998}) 15... Qc7 {[%emt 0:00:55]} (15... Bxg2 $2 16. Rg1 $18) 16. O-O-O {[%emt 0:00:17]} f4 {[%emt 0:07:58]} ({Much less strong is} 16... Qxe5 17. Rhe1 Qg7 18. Qxg7+ Kxg7 19. Rxe7+ (19. Rxd7 Bxg2 20. Rexe7+ Kf6 $16) 19... Kh6 20. Rdxd7 Bxg2 21. Rxh7+ Kg5 22. h4+ (22. Rxa7 Rxa7 23. h4+ Kg4 $14) 22... Kg4 23. Rd6 $16 (23. Rxa7 Rxa7 24. Rxa7 Kxh4 $14)) 17. Qg5 {[%emt 0:24:39]} Rae8 {[%emt 0:02:32]} 18. Rhe1 {[%emt 0:07:57]} Rf5 {[%emt 0:00:36]} 19. Qg4 {[%emt 0:00:07]} Qc5 {[%emt 0:03:57] Prevents Nb5.} 20. Rxd7 $2 {[%emt 0:05:54]} (20. b4 $14 {stays ahead.} Qc6 21. f3) 20... Qxf2 $17 {[%emt 0:01:21]} 21. Re2 {[%emt 0:09:05]} Qg1+ {[%emt 0:00:03]} 22. Nd1 {[%emt 0:02:11]} Bc6 $36 {[%emt 0:01:38][%mdl 2048] Keeping White busy.} 23. Rd3 {[%emt 0:05:02]} Qxh2 {[%emt 0:02:21]} 24. Rh3 {[%emt 0:00:37] Against Qh6} Qg1 {[%emt 0:00:06] Strongly threatening ...Rd8.} 25. Qh4 {[%emt 0:03:02] Now White is beyond hope.} (25. Rh6 $17 {was necessary.} Kg7 26. Qh4) 25... h5 $19 {[%emt 0:00:09] And now ...Rd8 would win.} 26. Rh1 {[%emt 0:03:10]} Qc5 {[%emt 0:00:47]} 27. Rhe1 {[%emt 0:01:53]} Bb5 {[%emt 0:02:25]} 28. c4 {[%emt 0:01:12]} (28. Rd2 {was called for.}) 28... Bc6 {[%emt 0:01:22]} 29. g4 {[%emt 0:00:19]} fxg3 $1 {[%emt 0:00:18]} 30. Qxg3 {[%emt 0:00:15] [#]} Kh7 {[%emt 0:00:13]} (30... g5 $2 31. Rf2 Ref8 32. Ref1 Qxe5 33. Qxe5 Rxe5 34. Rxf8+ $18) 31. Rf2 {[%emt 0:06:29]} (31. Ne3 $142 Rf3 32. Qg5) 31... Ref8 {[%emt 0:00:25][%cal Rf5f2]} 32. Rg1 {[%emt 0:00:34]} Be8 {[%emt 0:00:24][%cal Rf5f2] Active counter play!} 33. Rxf5 {[%emt 0:01:02]} (33. Rgf1) 33... Rxf5 {[%emt 0:00:02]} 34. Re1 {[%emt 0:02:06]} Qd4 {[%emt 0:00:33]} 35. Nc3 {[%emt 0:00:28]} Bc6 {[%emt 0:00:38]} ({Don't blunder} 35... Rf2 $2 36. Rd1 h4 37. Qg5 Qf4+ 38. Qxf4 Rxf4 39. Nd5 $19) 36. Kb1 {[%emt 0:01:17]} (36. Ne2 $142 Qxe5 37. Qg1) 36... h4 {[%emt 0:00:39][%cal Bh5h4,Bh4h3,Bh3h2][%mdl 32]} 37. Qh3 {[%emt 0:00:28]} Qf2 {[%emt 0:00:22]} 38. Re2 {[%emt 0:00:42]} Qf1+ {[%emt 0:00:16]} 39. Qxf1 {[%emt 0:00:03]} Rxf1+ {[%emt 0:00:02][%mdl 4096] Endgame KRB-KRN} 40. Kc2 {[%emt 0:00:24]} h3 {[%emt 0:00:16]} 41. Nd5 {[%emt 0:00:37]} Rg1 {[%emt 0:00:24] aiming for ...Bxd5.} 42. Kc3 {[%emt 0:00:37]} Rg2 {[%emt 0:00:23] Against Rh2} 43. Re3 {[%emt 0:00:09] [#]} h2 $1 {[%emt 0:01:11]} ({And not} 43... Bd7 44. e6 Bxe6 45. Rxe6 $17) 44. Rh3+ {[%emt 0:01:06]} Kg7 {[%emt 0:00:01][%cal Og2g3]} 45. Nxe7 {[%emt 0:00:22]} Bd7 {[%emt 0:00:01]} 46. Rh4 {[%emt 0:01:09]} Rg3+ {[%emt 0:00:01]} 47. Kc2 {[%emt 0:00:35]} Bh3 {[%emt 0:00:02] Weighted Error Value: White=0.60/Black=0.04 (flawless)} 0-1

[Event "34th MPL National U14-ch 2022"]
[Site "Ahmedabad"]
[Date "2022.05.10"]
[Round "3.3"]
[White "Ilamparthi A R"]
[Black "Arshpreet Singh"]
[Result "1-0"]
[ECO "A04"]
[WhiteElo "2121"]
[BlackElo "1564"]
[Annotator "TA"]
[PlyCount "77"]
[EventDate "2022.05.09"]
[EventType "swiss"]
[EventCountry "IND"]
[SourceTitle "playchess.com"]
[Source "ChessBase"]
[SourceQuality "1"]
[TimeControl "5400+30"]

{[%evp 11,77,-4,3,-7,-10,-4,29,22,2,8,85,72,85,81,83,82,85,75,81,97,101,106,94,96,104,45,147,156,229,222,227,210,283,251,362,356,384,379,501,501,508,511,498,489,610,550,606,629,542,608,582,509,542,522,751,740,672,642,780,761,1565,912,1945,1845,1827,1416,29986,29980]} 1. Nf3 {[%emt 0:00:05]} c5 {[%emt 0:00:16]} 2. g3 {[%emt 1:31:25]} Nc6 {[%emt 0:00:29]} 3. Bg2 {[%emt 0:00:00]} g6 {[%emt 0:00:06]} 4. O-O {[%emt 0:00:00]} Bg7 {[%emt 0:00:04]} 5. d3 {[%emt 0:00:00]} d6 {[%emt 0:00:37]} 6. e4 {[%emt 0:00:00]} e5 {[%emt 0:01:06]} 7. a4 {[%emt 0:00:00] A04: Unusual lines after 1 Nf3 and King's Indian Attack.} Nge7 {[%emt 0:01:13]} 8. Nc3 {[%emt 0:00:00]} h6 {[%emt 0:01:04]} 9. Nd2 {[%emt 0:00:00][%cal Bf3d2,Bd2c4,Bc4a3][%mdl 32] White has an edge.} Be6 {[%emt 0:04:27]} 10. Nc4 {[%emt 0:00:00] [#]} a6 $146 {[%emt 0:04:54]} (10... d5 $11 {remains equal.} 11. exd5 Nxd5) ({Predecessor:} 10... O-O 11. Ne3 Qd7 12. Ncd5 f5 13. Bd2 f4 14. Nxe7+ Nxe7 15. Nd5 Nxd5 16. exd5 Bg4 {0-1 (45) Bryakin,M (2480)-Pavlidou,E (2189) Chess.com INT 2022}) 11. Nd5 $16 {[%emt 0:00:00]} Bxd5 {[%emt 0:06:09]} 12. exd5 {[%emt 0:00:00]} Na5 {[%emt 0:00:12]} 13. Na3 {[%emt 0:00:00]} b6 {[%emt 0:06:42]} 14. Rb1 {[%emt 0:00:00]} Rb8 {[%emt 0:11:22]} 15. b4 {[%emt 0:00:00]} cxb4 {[%emt 0:00:28]} 16. Rxb4 {[%emt 0:00:00]} Nb7 {[%emt 0:00:18]} 17. Be3 {[%emt 0:00:00] White is more active.} Nc5 {[%emt 0:00:25]} 18. d4 {[%emt 0:00:00]} (18. Nc4 $16) 18... Nd7 {[%emt 0:04:53]} ({Black should try} 18... exd4 $1 $14 19. Bxd4 Bxd4 20. Qxd4 O-O) 19. Nc4 $36 {[%emt 0:00:00][%mdl 2048] White is on the roll.} Nc8 {[%emt 0:04:46]} (19... O-O $16 {keeps fighting.}) 20. dxe5 $18 {[%emt 0:00:00]} Nxe5 {[%emt 0:02:05]} 21. Nxe5 {[%emt 0:00:00]} dxe5 {[%emt 0:06:59]} 22. a5 {[%emt 0:00:00]} Bf8 {[%emt 0:17:43]} (22... O-O $142 23. c4 b5) 23. Rb2 {[%emt 0:00:00]} Bd6 {[%emt 0:01:33]} 24. Qb1 {[%emt 0:00:00]} Bc7 {[%emt 0:18:34]} 25. c4 {[%emt 0:00:00][%cal Bc2c4,Bc4c5][%mdl 32] Prevents b5.} b5 {[%emt 0:01:08]} 26. c5 {[%emt 0:00:00] Prevents Nd6.} O-O {[%emt 0:00:28]} 27. d6 {[%emt 0:00:00]} Bxa5 {[%emt 0:00:53]} 28. Bxh6 {[%emt 0:00:00]} Bc3 {[%emt 0:00:38]} 29. Bxf8 {[%emt 0:00:00]} Kxf8 {[%emt 0:01:12]} 30. Rc2 {[%emt 0:00:00]} Bd4 {[%emt 0:00:08]} 31. Kh1 {[%emt 0:00:00]} Kg7 {[%emt 0:01:14]} 32. f4 {[%emt 0:00:00]} f6 {[%emt 0:00:13]} 33. fxe5 {[%emt 0:00:00]} Bxe5 {[%emt 0:00:30]} 34. Qb3 {[%emt 0:00:00]} a5 {[%emt 0:02:00]} 35. Re2 {[%emt 0:00:00][%cal Oe2e5] [#] Hoping for Rxe5!} Qd7 {[%emt 0:01:35]} 36. Qd5 {[%emt 0:00:00]} Bc3 {[%emt 0:00:52]} 37. Re6 {[%emt 0:00:00]} Qf7 {[%emt 0:00:49]} 38. d7 {[%emt 0:00:00]} Na7 {[%emt 0:00:49]} 39. Qd6 {[%emt 0:00:00] Weighted Error Value: White=0.08 (flawless) /Black=0.57} 1-0

[Event "34th MPL National U14-ch 2022"]
[Site "Ahmedabad"]
[Date "2022.05.10"]
[Round "3.4"]
[White "Sathvik Adiga"]
[Black "Daakshin Arun"]
[Result "0-1"]
[ECO "B92"]
[WhiteElo "1607"]
[BlackElo "2016"]
[Annotator "TA"]
[PlyCount "124"]
[EventDate "2022.05.09"]
[EventType "swiss"]
[EventCountry "IND"]
[SourceTitle "playchess.com"]
[Source "ChessBase"]
[SourceQuality "1"]
[TimeControl "5400+30"]

{[%evp 22,123,0,0,27,26,24,8,24,0,24,0,0,0,0,0,20,-77,137,148,122,133,171,120,104,7,52,-46,-29,-172,-160,-403,-347,-464,-463,-391,-457,-435,-107,-106,-114,-108,-122,-908,-826,-1699,-1619,-1784,-1769,-1285,-493,-973,-558,-29986,-29987,-29987,-29988,-29993,-29989,-29989,-29990,-29994,-29992,-29992,-29988,-29987,-29985,-29985,-29986,-29986,-29987,-29987,-29988,-29988,-29989,-29989,-29990,-29990,-29991,-29991,-29992,-29992,-29992,-29993,-29993,-29994,-29995,-29995,-29995,-29995,-29996,-29997,-29997,-29997,-29997,-29999,-29997,-29997,-29997,-29998,-29998,-29998,-29999,-29999]} 1. e4 {[%emt 0:00:05]} c5 {[%emt 0:00:06]} 2. Nf3 {[%emt 0:00:09]} d6 {[%emt 0:00:07]} 3. d4 {[%emt 0:00:06]} cxd4 {[%emt 0:00:04]} 4. Nxd4 {[%emt 0:00:07]} Nf6 {[%emt 0:00:05]} 5. Nc3 {[%emt 0:00:08]} a6 {[%emt 0:00:04]} 6. Be2 {[%emt 0:00:06]} e5 {[%emt 0:00:07]} 7. Nb3 {[%emt 0:00:08]} Be7 {[%emt 0:00:05]} 8. Be3 {[%emt 0:00:20]} Be6 {[%emt 0:00:21]} 9. Qd3 {[%emt 0:01:41]} Nbd7 {[%emt 0:00:30]} 10. O-O {[%emt 0:00:43]} O-O {[%emt 0:00:05]} 11. Nd5 {[%emt 0:01:22]} Bxd5 {[%emt 0:00:06]} 12. exd5 {[%emt 0:00:03]} h5 {[%emt 0:00:09] Recently 12...Rc8 got a lot of attention. B92: Sicilian Najdorf: 6 Be2.} 13. h3 {[%emt 0:04:39]} g6 {[%emt 0:01:09] [#]} 14. a4 $146 {[%emt 0:05:57]} ({Predecessor:} 14. c4 a5 15. a4 Nc5 16. Nxc5 dxc5 17. Ra3 Ne8 18. Rb3 b6 19. Bh6 Ng7 20. g4 {½-½ (54) Choukri,A (2318)-Maenhout,T (2394) Guimaraes 2021}) 14... Nh7 {[%emt 0:00:16] The position is equal.} 15. a5 {[%emt 0:05:16]} Bg5 {[%emt 0:01:51]} 16. c4 {[%emt 0:02:57]} f5 {[%emt 0:00:16]} 17. c5 {[%emt 0:19:02]} e4 $1 {[%emt 0:06:12]} 18. Qc3 {[%emt 0:05:42] Hoping for c6.} f4 {[%emt 0:02:58]} 19. Bd4 {[%emt 0:02:19]} (19. Bc1 $11) 19... dxc5 $2 {[%emt 0:04:37]} (19... f3 $1 $17 {[%cal Rf3e2] keeps the pressure on.} 20. gxf3 Bf4 21. fxe4 Qh4) 20. Nxc5 $16 {[%emt 0:00:40]} Nxc5 {[%emt 1:21:22]} 21. Bxc5 {[%emt 0:00:23] This bishop pair is nice.} ({Much worse is} 21. Qxc5 $6 Rc8 22. Qb4 (22. Qb6 Qxb6 23. Bxb6 Nf6 $11) 22... f3 $11) 21... Rf5 {[%emt 0:00:00]} 22. Bc4 {[%emt 0:04:03]} (22. d6 $18 {Strongly threatening Bc4+.} Bf6 23. Qb3+ Kh8 24. Rac1) 22... Bf6 {[%emt 0:00:00]} 23. Qc2 {[%emt 0:09:10]} (23. Qb3 $1 $16) 23... Rc8 {[%emt 0:00:00] [#]} 24. Bb6 {[%emt 0:00:56]} ({Better is} 24. b4 $1 $14) 24... Qd6 $1 $15 {[%emt 0:00:00] White must now prevent ...f3.} 25. Rab1 {[%emt 0:11:10]} (25. Qxe4 $2 Ng5 26. Qc2 f3 $19) (25. Rac1 $11 {and White has nothing to worry.}) 25... f3 $19 {[%emt 0:00:00]} 26. g3 $2 {[%emt 0:02:36]} ({Not} 26. Qxe4 $2 Ng5 27. Qe3 fxg2 $19) (26. Rfc1 $17 {only move.}) 26... Rg5 {[%emt 0:00:00][%cal Oc8c4] ...Rxc4! is the strong threat.} 27. Kh1 {[%emt 0:04:38]} Qd7 $1 {[%emt 0:00:00]} 28. Kh2 {[%emt 0:00:15]} h4 {[%emt 0:00:00]} 29. Qxe4 {[%emt 0:03:51]} Qd6 $2 {[%emt 0:00:00]} (29... hxg3+ $19 {and Black stays clearly on top.} 30. fxg3 Rxc4 $1 31. Qxc4 Rh5) 30. Rg1 $17 {[%emt 0:01:19]} ({Wrong is} 30. Qxh4 $2 Rxg3 $3 {[%mdl 512]} 31. Qxg3 Be5 $17) 30... hxg3+ {[%emt 0:00:00]} 31. fxg3 {[%emt 0:00:34] [#]} Be5 $1 $36 {[%emt 0:00:00][%mdl 2048] Black is really pushing.} 32. Bf2 $2 {[%emt 0:00:54][%mdl 8192]} (32. Rbc1 $17 Bxg3+ 33. Kh1) 32... Nf6 $19 {[%emt 0:00:00][%cal Bh7f6,Bf6g4,Bg4f2][%mdl 32]} 33. Qd3 {[%emt 0:01:25]} Qd7 {[%emt 0:00:00][%cal Od7h3]} 34. d6+ {[%emt 0:10:57]} Kg7 {[%emt 0:00:00][%cal Od7h3] ( -> ...Qxh3+!)} 35. Qxf3 {[%emt 0:01:04]} Rxc4 {[%emt 0:00:00]} (35... Rh8 $142 {[%csl Gh8][%cal Rd7h3]} 36. Be6 Qxe6 37. Qxb7+ Nd7) 36. Rge1 {[%emt 0:01:34]} (36. Rgc1 $142 Rxc1 37. Rxc1 Bxd6 38. Kg1) 36... Rh5 {[%emt 0:00:00]} 37. Qg2 {[%emt 0:00:38]} Ng4+ {[%emt 0:00:00] Black mates.} 38. Kg1 {[%emt 0:00:11]} Nxf2 {[%emt 0:00:00]} 39. Kxf2 {[%emt 0:02:20]} Rc2+ {[%emt 0:00:00]} 40. Re2 {[%emt 0:00:02]} Qf5+ {[%emt 0:00:00]} 41. Kg1 {[%emt 0:00:21]} Rxe2 {[%emt 0:00:00]} 42. Qxe2 {[%emt 0:00:10]} Qxb1+ {[%emt 0:00:00]} 43. Kg2 {[%emt 0:00:07]} Qxb2 {[%emt 0:00:00]} 44. Qxb2 {[%emt 0:00:05]} Bxb2 {[%emt 0:00:00]} 45. d7 {[%emt 0:00:06]} Rd5 {[%emt 0:12:30]} 46. h4 {[%emt 0:00:06]} Rxd7 {[%emt 0:00:00]} 47. g4 {[%emt 0:00:07]} b6 {[%emt 0:00:00]} 48. axb6 {[%emt 0:00:03]} a5 {[%emt 0:00:00]} 49. b7 {[%emt 0:00:07]} Rxb7 {[%emt 0:00:00]} 50. h5 {[%emt 0:00:05]} a4 {[%emt 0:00:00]} 51. h6+ {[%emt 0:00:06]} Kxh6 {[%emt 0:00:00]} 52. Kg3 {[%emt 0:00:07]} a3 {[%emt 0:00:00]} 53. Kh4 {[%emt 0:00:07]} g5+ {[%emt 0:00:00]} 54. Kg3 {[%emt 0:00:05]} a2 {[%emt 0:00:00]} 55. Kf3 {[%emt 0:00:03]} a1=Q {[%emt 0:00:00]} 56. Ke4 {[%emt 0:00:03]} Rb5 {[%emt 0:00:00]} 57. Kd3 {[%emt 0:00:06]} Qa3+ {[%emt 0:00:00]} 58. Kc4 {[%emt 0:00:09]} Qb4+ {[%emt 0:00:00]} 59. Kd3 {[%emt 0:00:05]} Rd5+ {[%emt 0:00:00]} 60. Kc2 {[%emt 0:00:06]} Qc3+ {[%emt 0:00:00]} 61. Kb1 {[%emt 0:00:04]} Rd1+ {[%emt 0:00:00]} 62. Ka2 {[%emt 0:00:05]} Ra1# {[%emt 0:00:00] Weighted Error Value: White=0.61/Black=0.34} 0-1